Cogmind - Beta 16 @@@ ROGUE MODE // 2025.10.23 @ 21:36:58 Player: Stasyan Result: Self-destructed Performance ------------- Evolutions (3) 1500 Regions Visited (5) 1000 Robots Destroyed (45) 225 Value Destroyed (889) 889 Prototype IDs (6) 120 Alien Tech Used (0) 0 Bonus (4) 4 TOTAL SCORE: 3738 Bonus ------- High Alert Combat Kills 4 Cogmind --------- Core Integrity 475/700 Matter 270/300 Energy 100/100 System Corruption 10% Temperature Cool (12) Movement Flying (115) Ox1 Location -7/Storage Parts ------- > --- POWER (1) -------- (None) > --- PROPULSION (4) --- Cesium-ion Thruster > --- UTILITY (6) ------ Medium Storage Unit Advanced Visual Processing Unit Hacking Suite Hacking Suite > --- WEAPON (2) ------- (None) > --- INVENTORY (10) --- Micro Nuclear Core Flight Unit Improved Sensor Array Transmission Jammer System Shield Improved Grenade Launcher Remote Datajack Peak State ------------ > --- POWER ------------ Light Ion Engine > --- PROPULSION ------- Flight Unit Flight Unit Cesium-ion Thruster Xenon Bombardment Thruster > --- UTILITY ---------- Medium Storage Unit Structural Scanner Advanced Visual Processing Unit Improved Sensor Array Improved Propulsion Shielding Hacking Suite > --- WEAPON ----------- (None) > --- INVENTORY -------- Light Deuterium Engine Micro Nuclear Core Flight Unit Improved Sensor Array Transmission Jammer Improved Propulsion Shielding Hacking Suite System Shield Improved Grenade Launcher Remote Datajack [Rating: 27] Favorites ----------- Power Light Ion Engine Engine Light Ion Engine Propulsion Aluminum Leg Leg Aluminum Leg Flight Unit Flight Unit Utility Medium Storage Unit Device Structural Scanner Storage Medium Storage Unit Processor Advanced Visual Processing Unit Hackware Hacking Suite Protection Improved Propulsion Shielding Weapon Small Laser Energy Gun Small Laser Ballistic Gun Minigun Launcher Improved Grenade Launcher Build | -11 -10 -9 -8 -7 -7 ------- Run | Yrd Mat Mat Mat Fac Sto Slots Evolved 6 | . . 2 2 2 . Power . | . . . . . . Propulsion 2 | . . 2 . . . Utility 4 | . . . 2 2 . Weapon . | . . . . . . Parts Attached 42 | 6 8 10 10 6 2 Power 6 | 1 2 2 . 1 . Engine 6 | 1 2 2 . 1 . Core . | . . . . . . Reactor . | . . . . . . Propulsion 17 | 2 3 5 5 2 . Treads . | . . . . . . Leg 10 | 2 3 5 . . . Wheel . | . . . . . . Hover . | . . . . . . Flight 7 | . . . 5 2 . Utility 12 | 1 2 1 4 2 2 Device 4 | . 1 . 2 1 . Storage 3 | 1 1 1 . . . Processor 1 | . . . 1 . . Hackware 2 | . . . 1 . 1 Protection 2 | . . . . 1 1 Artifact . | . . . . . . Weapon 7 | 2 1 2 1 1 . Energy Gun 5 | 2 1 2 . . . Energy Cannon . | . . . . . . Ballistic Gun 1 | . . . 1 . . Ballistic Cannon . | . . . . . . Launcher 1 | . . . . 1 . Special Weapon . | . . . . . . Impact Weapon . | . . . . . . Slashing Weapon . | . . . . . . Piercing Weapon . | . . . . . . Special Melee Weapon . | . . . . . . Unidentified Prototypes 1 | . . 1 . . . Parts Lost 17 | . 3 5 1 2 6 Power 3 | . 1 1 . 1 . Propulsion 8 | . 1 2 1 . 4 Utility 4 | . . 1 . 1 2 Weapon 2 | . 1 1 . . . Highest Loss Streak 6 | . 1 4 1 1 6 To Critical Strikes . | . . . . . . Average Backups 9 | . 4 13 10 9 7 Power 1 | . . 1 1 1 1 Propulsion 2 | . 2 5 2 . . Utility 3 | . . 4 4 4 3 Weapon 1 | . 1 1 2 1 1 Tool/Special . | . . . . . . Unused Backups 16 | . 2 3 3 4 4 Power 2 | . . . . 1 1 Propulsion 4 | . 2 1 1 . . Utility 5 | . . . 1 2 2 Weapon 4 | . . 2 1 1 . Tool/Special 1 | . . . . . 1 Average Slot Usage (%) 88 | . 89 97 85 79 66 Engine 10 | . 13 11 9 7 7 Leg 21 | . 28 43 2 . . Flight 12 | . . . 31 30 25 Device 8 | . 5 9 9 10 2 Storage 10 | . 14 11 9 7 7 Processor 2 | . . . 2 7 7 Hackware 3 | . . . 7 7 13 Protection 2 | . . . . 7 1 Energy Gun 15 | . 28 21 13 . . Peak Build Rating 27 | 6 10 15 18 27 25 Average Rating 14 | 4 7 12 13 21 18 On Entrance 11 | . 6 10 9 16 25 Avg Prop Armor Cover (%) . | . . . . . . Naked Turns . | . . . . . . Heaviest Build 32 | 13 18 32 26 22 16 Greatest Support 40 | 20 20 40 40 19 19 Greatest Overweight (x) 1 | 1 . . 1 1 . Average Overweight (x) . | . . . . . . Largest Inventory Capacity 15 | 8 10 15 15 10 10 Average Capacity 11 | 6 8 14 10 10 10 Most Carried 15 | 1 10 15 15 10 10 Average Carried 9 | . 4 13 9 9 6 Final Capacity 15 | 8 10 15 10 10 10 Final Carried 15 | 1 10 15 10 10 7 Class Distribution -------------------- 42% | Mutant 37% | Scavenger-Sprinter 18% | Scavenger-Mutant Dominant Class ---------------- Mutant | -10/Materials Scavenger-Mutant | -9/Materials Scavenger-Sprinter | -8/Materials Scavenger-Sprinter | -7/Factory Hacker-Sprinter | -7/Storage Resources | -11 -10 -9 -8 -7 -7 ----------- Run | Yrd Mat Mat Mat Fac Sto Matter Collected 623 | 206 129 100 . 188 . Remotely . | . . . . . . Salvage Created 1358 | . 427 879 . 52 . Parts 96 | . 24 64 . 8 . Haulers Intercepted 5 | . 1 4 . . . Recyclers Shooed 5 | . 3 2 . . . Parts Field Recycled . | . . . . . . Retrieved Matter . | . . . . . . Parts Self-Destructed . | . . . . . . Prevented . | . . . . . . Parts Restored . | . . . . . . Kills | -11 -10 -9 -8 -7 -7 ------- Run | Yrd Mat Mat Mat Fac Sto Combat Hostiles Destroyed 32 | . 7 21 . 4 . Guns 27 | . 6 21 . . . AOE 4 | . . . . 4 . Classes Destroyed 7 | . 5 2 . . . Builder 3 | . 1 2 . . . Hauler 5 | . 1 4 . . . Recycler 2 | . 1 1 . . . Operator 3 | . 2 1 . . . Swarmer 18 | . . 14 . 4 . Grunt 13 | . 7 6 . . . Sentry 1 | . . 1 . . . Best Kill Streak 7 | . 3 7 . 4 . Combat Bots Only 6 | . 2 6 . 4 . Max Kills in Single Turn 3 | . 1 2 . 3 . Gunslinging . | . . . . . . Exploded 3 | . . . . 3 . Melee . | . . . . . . Uniques/NPCs Destroyed . | . . . . . . Combat | -11 -10 -9 -8 -7 -7 -------- Run | Yrd Mat Mat Mat Fac Sto Hostile Shots Fired 272 | . 47 122 8 52 43 Missed 108 | . 12 41 3 23 29 Hits 164 | . 35 81 5 29 14 Projectile 164 | . 35 81 5 29 14 Critical Strikes 4 | . 1 1 1 . 1 Damage Taken 2019 | . 559 819 72 352 217 Core 477 | . 98 141 13 142 83 Absorbed by Shields . | . . . . . . Redirected to Shielding 121 | . . . . 88 33 Core Remaining (%) 80 | 100 60 64 97 . . Volleys Fired 112 | . 46 63 1 2 . Largest 2 | . 2 2 2 1 . Hottest 90 | . 90 85 80 36 . Shots Fired 220 | . 92 124 2 2 . Gun 218 | . 92 124 2 . . Cannon . | . . . . . . Launcher 2 | . . . . 2 . Special . | . . . . . . Kinetic . | . . . . . . Thermal 193 | . 92 99 2 . . Explosive 2 | . . . . 2 . Electromagnetic 25 | . . 25 . . . Robot Hit Streak 11 | . 11 9 6 8 . Robot Miss Streak 5 | . 3 5 . . . Penetration Max . | . . . . . . Secondary Targets 3 | . . 3 . . . Max Gunslinging Chain 1 | . . 1 . . . Shots Hit Robots 146 | . 61 81 2 2 . Core Hits 72 | . 22 46 . 4 . Critical Kills . | . . . . . . Critical Parts Destroyed . | . . . . . . Critical Strikes 3 | . 3 . . . . Burn 3 | . 3 . . . . Melee Attacks . | . . . . . . Impact . | . . . . . . Slashing . | . . . . . . Piercing . | . . . . . . Sneak Attacks . | . . . . . . Combat Hostiles . | . . . . . . Follow-up Attacks . | . . . . . . Damage Inflicted 2280 | . 883 1140 24 233 . Guns 1777 | . 722 1031 24 . . Cannons . | . . . . . . Explosions 497 | . 161 103 . 233 . Melee . | . . . . . . Ramming 6 | . . 6 . . . Kinetic . | . . . . . . Thermal 1579 | . 722 833 24 . . Explosive 394 | . 161 . . 233 . Electromagnetic 301 | . . 301 . . . Impact . | . . . . . . Slashing . | . . . . . . Piercing . | . . . . . . Highest Corruption 10 | . . . . 9 10 Average Corruption 7 | . . . . 7 9 Corruption Purged . | . . . . . . Corruption Blocked . | . . . . . . Effects 22 | . . . . 19 3 Message Errors 6 | . . . . 5 1 Matter Fused 3 | . . . . 3 . Heat Flow Errors 1 | . . . . 1 . Energy Discharges 1 | . . . . 1 . Parts Fused 1 | . . . . . 1 Data Loss (minor) 4 | . . . . 4 . Data Loss (major) 5 | . . . . 5 . Alerts 1 | . . . . . 1 Overload Shots . | . . . . . . Overflow Damage 110 | . 106 4 . . . Projectiles . | . . . . . . Explosions 110 | . 106 4 . . . Melee . | . . . . . . Knockbacks . | . . . . . . Impact . | . . . . . . Kinetic . | . . . . . . Secondary . | . . . . . . Self-Inflicted Damage 176 | . 128 48 . . . Shots 3 | . 2 1 . . . Rammed . | . . . . . . Targets Rammed 1 | . . 1 . . . Kicked 1 | . . 1 . . . Crushed . | . . . . . . Highest Temperature 332 | . 332 96 20 250 . Average Temperature 100 | . 131 40 10 112 . Received Heat Transfer 630 | . 258 201 45 96 30 Effects 1 | . 1 . . . . Energy Bleed 1 | . 1 . . . . Siege Activations . | . . . . . . Martial Activations . | . . . . . . Shielding Activations . | . . . . . . Robots Disrupted . | . . . . . . Combat Hostiles . | . . . . . . Robots Corrupted . | . . . . . . Combat Hostiles . | . . . . . . Parts Fried 1 | . . 1 . . . Impact Corruptions . | . . . . . . Robots Melted 1 | . 1 . . . . Combat Hostiles 1 | . 1 . . . . Parts Melted 4 | . 2 2 . . . Heat Transferred 3888 | . 2013 1825 50 . . Parts Sabotaged . | . . . . . . Parts Stolen . | . . . . . . Parts Stripped . | . . . . . . Power Chain Reactions 2 | . . 2 . . . Alert | -11 -10 -9 -8 -7 -7 ------- Run | Yrd Mat Mat Mat Fac Sto Maximum Alert Level 2 | . . 2 . 1 . Low Security (%) 75 | 100 100 29 100 88 100 Level 1 21 | . . 62 . 11 . Level 2 2 | . . 7 . . . Level 3 . | . . . . . . Level 4 . | . . . . . . Level 5 . | . . . . . . High Security . | . . . . . . Max Security . | . . . . . . Peak Influence 423 | . 95 423 173 264 171 Initial 173 | . . 6 173 73 111 Average 121 | . 30 221 160 116 112 Influence Increases 1891 | . 291 745 60 650 145 Destroy 0b10 Robot/C 640 | . 140 420 . 80 . Destroy 0b10 Robot/NC 65 | . 25 40 . . . Destroy Leader 110 | . 32 68 . 10 . Successful Hack 69 | . 4 11 . 44 10 Disable Machine 45 | . 45 . . . . Destroy Structure 47 | . 30 11 . 6 . Partial Spotted 135 | . . 15 30 60 30 Lose Combat Pursuer 780 | . 15 180 30 450 105 Influence Decreases 1715 | . 275 349 309 567 215 Entered New Map 474 | . . 10 239 90 135 Time Decay 946 | . 252 289 60 325 20 Search Patrol Dispatched 100 | . . . . 100 . Lost Part 163 | . 23 50 10 20 60 Purge Threat 32 | . . . . 32 . Squads Dispatched 10 | . 1 1 1 6 1 Investigation 4 | . . 1 1 1 1 Extermination 3 | . . . . 3 . Reinforcement 3 | . 1 . . 2 . Assault . | . . . . . . Garrison . | . . . . . . Intercept . | . . . . . . Searches Triggered 1 | . . . . 1 . Construction Impeded . | . . . . . . Haulers Reinforced . | . . . . . . Active Scanning Responses . | . . . . . . Cargo Convoy Interrupts . | . . . . . . Stealth | -11 -10 -9 -8 -7 -7 --------- Run | Yrd Mat Mat Mat Fac Sto Distress Signals 5 | . . . . 2 3 Communications Jammed . | . . . . . . Distress Signals . | . . . . . . Times Spotted 126 | . 17 32 12 45 20 Peak Tracking Total 15 | . 4 8 9 9 15 Tactical Retreats 23 | . 1 7 2 11 2 Traps | -11 -10 -9 -8 -7 -7 ------- Run | Yrd Mat Mat Mat Fac Sto Traps Triggered 8 | . . 1 1 4 2 Indirectly . | . . . . . . Trap Hack Attempts . | . . . . . . Triggered . | . . . . . . Disarmed . | . . . . . . Reprogrammed . | . . . . . . Reused . | . . . . . . Traps Extracted . | . . . . . . Installed . | . . . . . . Triggered . | . . . . . . Machines | -11 -10 -9 -8 -7 -7 ---------- Run | Yrd Mat Mat Mat Fac Sto Machines Disabled 3 | . 3 . . . . Max in Single Turn 3 | . 3 . . . . Machines Repaired . | . . . . . . Machines Dismantled . | . . . . . . Machines Sabotaged . | . . . . . . Overloaded Fab Kills . | . . . . . . Hacking | -11 -10 -9 -8 -7 -7 --------- Run | Yrd Mat Mat Mat Fac Sto Machines Accessed 17 | . 2 5 . 9 1 Terminals 13 | . 2 4 . 6 1 Fabricators 1 | . . . . 1 . Repair Stations . | . . . . . . Recycling Units 2 | . . 1 . 1 . Scanalyzers . | . . . . . . Garrison Access 1 | . . . . 1 . Total Hacks 40 | . 5 12 . 20 3 Successful 17 | . 1 5 . 9 2 Failed 23 | . 4 7 . 11 1 Catastrophic 5 | . . 1 . 4 . Database Lockouts . | . . . . . . Manual . | . . . . . . Terminals 36 | . 5 11 . 17 3 Fabricators 1 | . . . . 1 . Repair Stations . | . . . . . . Recycling Units 2 | . . 1 . 1 . Scanalyzers . | . . . . . . Garrison Access 1 | . . . . 1 . Terminal Hacks 14 | . 1 4 . 7 2 Record 2 | . . 2 . . . Part Schematic 1 | . . . . 1 . Robot Analysis 1 | . . . . . 1 Prototype ID Bank 2 | . . 1 . 1 . Emergency Access Points 2 | . 1 1 . . . Unreport Threat 1 | . . . . 1 . Locate Traps 1 | . . . . 1 . Recall Reinforcements 1 | . . . . 1 . Registered Components 1 | . . . . . 1 Zone Layout 2 | . . . . 2 . Fabricator Hacks 1 | . . . . 1 . Build 1 | . . . . 1 . Repair Station Hacks . | . . . . . . Recycling Unit Hacks 2 | . . 1 . 1 . Report Inventory 2 | . . 1 . 1 . Scanalyzer . | . . . . . . Garrison Access Hacks . | . . . . . . Unauthorized Hacks . | . . . . . . Terminals . | . . . . . . Fabricators . | . . . . . . Repair Stations . | . . . . . . Recycling Units . | . . . . . . Scanalyzers . | . . . . . . Garrison Access . | . . . . . . Data Cores Recovered 1 | . . 1 . . . Used . | . . . . . . Hacking Detections 14 | . 2 3 . 8 1 Full Trace Events 2 | . . . . 1 1 Feedback Events 1 | . . . . 1 . Corruption 1 | . . . . 1 . Feedback Blocked . | . . . . . . Robot Schematics Acquired . | . . . . . . Robots Built . | . . . . . . Authchips . | . . . . . . Time . | . . . . . . Total Robot Build Rating . | . . . . . . Part Schematics Acquired 1 | . . . . 1 . Parts Built 2 | . . . . 2 . Authchips . | . . . . . . Time 117 | . . . . 117 . Total Part Build Rating 14 | . . . . 14 . Part Studies Acquired . | . . . . . . Parts Repaired . | . . . . . . Time . | . . . . . . Parts Recycled . | . . . . . . Recycled Matter . | . . . . . . Retrieved Matter . | . . . . . . Retrieved Components . | . . . . . . Parts Scanalyzed . | . . . . . . Part Schematics Acquired . | . . . . . . Parts Damaged . | . . . . . . Bothacking | -11 -10 -9 -8 -7 -7 ------------ Run | Yrd Mat Mat Mat Fac Sto Used RIF Installer . | . . . . . . Robots Hacked . | . . . . . . Non-combat . | . . . . . . Combat . | . . . . . . Robot Hacks Applied . | . . . . . . Relay Couplers Released . | . . . . . . Fabnet Peak Effective % . | . . . . . . Robots Rewired . | . . . . . . Allies Hacked . | . . . . . . Hacks Repelled . | . . . . . . Allies | -11 -10 -9 -8 -7 -7 -------- Run | Yrd Mat Mat Mat Fac Sto Total Allies . | . . . . . . Largest Group . | . . . . . . Highest-Rated Group . | . . . . . . Highest-Rated Ally . | . . . . . . Total Orders . | . . . . . . Ally Attacks . | . . . . . . Total Damage . | . . . . . . Kills . | . . . . . . Allies Corrupted . | . . . . . . Allies Melted . | . . . . . . Intel | -11 -10 -9 -8 -7 -7 ------- Run | Yrd Mat Mat Mat Fac Sto Active Infowar (turns) 929 | . . . 107 769 53 Optics 854 | . . . 32 769 53 Sensors 410 | . . . 25 370 15 Structural 866 | . . . 107 759 . Jamming 2 | . . . . 2 . Robot Analysis Total 1 | . . . . . 1 Derelict Logs Recovered . | . . . . . . Drone Launches . | . . . . . . Drone Recoveries . | . . . . . . Exploration | -11 -10 -9 -8 -7 -7 ------------- Run | Yrd Mat Mat Mat Fac Sto Turns Passed 2391 | 54 698 696 121 769 53 Spaces Moved 3145 | 38 403 382 213 1956 153 Core 3 | 3 . . . . . Treads . | . . . . . . Legs 826 | 35 403 382 6 . . Wheels . | . . . . . . Hover . | . . . . . . Flight 2316 | . . . 207 1956 153 Fastest Speed 29 | 50 120 120 31 29 29 Average Speed 54 | 115 120 120 33 30 31 Slowest Speed 120 | 120 120 120 120 111 32 Overloaded Moves . | . . . . . . Propulsion Burnouts . | . . . . . . Robots Hopped 41 | . . . 4 28 9 Potential Cave-ins . | . . . . . . Cave-ins Triggered . | . . . . . . Exploration Rate (%) 39 | 3 56 34 40 58 45 Regions Visited 5 Branch Regions 1 Pre-discovered Areas . | . . . . . . Known Exits Taken . | . . . . . . Unknown Exits Taken 5 | 1 1 1 1 1 . Scrap Searched . | . . . . . . Spaces Dug . | . . . . . . Terrain Destroyed 56 | . 33 9 . 14 . Melee . | . . . . . . Projectile . | . . . . . . AOE 56 | . 33 9 . 14 . Terrain Rammed . | . . . . . . Walls Destroyed . | . . . . . . Machines Disabled . | . . . . . . Actions | -11 -10 -9 -8 -7 -7 --------- Run | Yrd Mat Mat Mat Fac Sto Total 3574 | 45 527 497 261 2094 150 Wait 223 | . 47 20 17 139 . Move 3064 | 37 402 381 204 1903 137 Hop 35 | . . . 4 24 7 Pick Up 54 | 2 18 15 10 8 1 Fast Attach 7 | 5 . 1 . 1 . Attach 29 | 1 4 6 10 4 4 Detach 6 | . . . 2 3 1 Swap 11 | . 4 4 1 2 . Drop 32 | . 6 6 12 8 . Fire 112 | . 46 63 1 2 . Melee . | . . . . . . Ram . | . . . . . . Kick 1 | . . 1 . . . Crush . | . . . . . . Escape Stasis . | . . . . . . Rewire . | . . . . . . Trap . | . . . . . . Miscellaneous . | . . . . . . Route ------- -11/Scrapyard -10/Materials (discovered 2 exits: *Mat x2) -9/Materials (discovered 2 exits: [*Mat] / [*Min]) -8/Materials -7/Factory (discovered 4 exits: [*Fac] / *Sto / [*Low x2]) -7/Storage History --------- Turn | Location | Event 25 | -11/Scrapyard | Discovered new exit (range 16) 55 | -11/Scrapyard | Entered Materials 123 | -10/Materials | Discovered new exit (range 6) 304 | -10/Materials | Build established: Mutant 418 | -10/Materials | Discovered new exit (range 14) 753 | -10/Materials | Entered another Materials area 753 | -9/Materials | Evolved 2 slots: Propulsion x2 1182 | -9/Materials | Discovered new exit (range 15) 1293 | -9/Materials | Build established: Scavenger-Mutant 1358 | -9/Materials | Lost 4 parts (1p2n1u) 1440 | -9/Materials | Discovered new exit (range 8) 1449 | -9/Materials | Entered another Materials area 1449 | -8/Materials | Evolved 2 slots: Utility x2 1564 | -8/Materials | Discovered new exit (range 18) 1570 | -8/Materials | Entered Factory 1570 | -7/Factory | Evolved 2 slots: Utility x2 1771 | -7/Factory | Discovered new exit (range 12) 1776 | -7/Factory | Discovered new exit (range 5) 1777 | -7/Factory | Build established: Scavenger-Sprinter 1855 | -7/Factory | Discovered new exit (range 8) 1929 | -7/Factory | Fabricated Imp. Linear Gravjet? 1970 | -7/Factory | Search patrols dispatched 2011 | -7/Factory | Discovered new exit (range 6) 2339 | -7/Factory | Entered Storage 2358 | -7/Storage | System corruption reached 10% 2388 | -7/Storage | Lost 6 parts (3n3u) 2392 | -7/Storage | Self-destructed Last Messages --------------- S007. Dispatching Investigation squad. 02354_ Imp. Sensor Array destroyed. 02357_ Flight Unit destroyed. 02358_ System corrupted: Imp. Propulsion Shielding fused. 02358_ Discarded Imp. Propulsion Shielding. 02360_ W-25 Informer sends out distress signal. 02375_ STJ9AENA0NT5=GD8FC6OI9F 02390_ O-16 Technician: "IFF HANDSHAKE FAILED. SECURING TERMINAL." 02390_ O-16 Technician sends out distress signal. 02391_ Triggered Blade Trap. 02391_ Massive razor-sharp blades shoot up from within the floor. 02391_ Flight Unit severed. 02391_ Lgt. Ion Engine severed. 02391_ Acquired Flight Unit. 02392_ Flight Unit destroyed. Map ----- +----------------------------------------------------+ | ????????????????????????????????????? | | ????????????????????????????????????? | | ????????????????????????????????????? | | ????????????????????????????????????? | | ????????????????????????????????????? | | ????????????????????????????????????? | | ????????????????????????????????????? | | ????????????????????????????????????? | | ????????????????????????????????????? | | ????????????????????????????????????? | | ????????????????????????????????????? | | ????????????????????????????????????? | | ????????????????????????????????????? | | ###?????????????????????????????????? | | #?????????????????????????????????? | | #?????????????#???????????????????? | | #????????????? ##?????##+?????????? | | #????????????## #????? ?????????? | | #????????????? ????? ?????????? | | #????????????? ###### Yo?????????? | | ###????####????? # [ ## #?????????? | | #??????# ?????? + ## #?????????? | | #?###### ######## # ## #?????????? | | #?# # # # ## #?????????? | | #?# / + # ## ######????? | | ??# # # # us/ @* #???? | | ??# # # # rat## #???? | | ??# # # s % ## !] #???? | | ### # # # !## !! #???? | | #####+## ####### ] #???? | | ####+###+#?????? #?????# #???? | | ?? ????????####?????? #???? | | " " !]????????????????########???? | | ""G"" !]#??????????????????????????? | | #?????????????????????????? | | ###########?????????????????????????? | | | | | | | | | | | | | | | | | | | | | | | | | | | | | +----------------------------------------------------+ Best States ------------- Heat Dissipation 42 Energy Generation 12 Energy Capacity 265 Matter Stores 300 Matter Capacity 300 Sight Range 20 Robot Scan Range 15 Terrain Scan Density 10 Propulsion Shielding 66 Evasion (%) 64 Offensive Hacking 20 Item Schematics ----------------- Imp. Actuator Array | -7/Factory | Hacked Robot Schematics ------------------ None Fabricated ------------ Imp. Linear Gravjet | x2 | -7/Factory | Preloaded Repaired ---------- Nothing Studied --------- None Alien Tech Used ----------------- None Achievements -------------- Overwhelming Suspicious Challenges ------------ None Game ------ Seed RemoteRingAccelerator Manual? 0 Play Time 00:41:32 Cumulative 27.3 hours Start 2025.10.23 @ 11:06:15 End 2025.10.23 @ 21:36:58 Sessions 13 Manual Loads 0 Difficulty Rogue Special Mode None Game No. 41 Rogue 41 Adventurer 0 Explorer 0 Win Type - Total 1 Types 0/0/1/0/0/0/0/0/0/0 Lore% 15 Gallery% 20 Achievement% 17 Wizard Run 0 Options --------- Layout 1 ASCII 0 Keyboard 0 Movement Mouse Keybinds 0 Fullscreen 1 Font 32/Proggy Map View 50x35 Zoom Use 0% Tactical HUD 1 Map Filters NONE Filters NONE Steam 1 RUN: ea3bf067-a42e-49a8-bf2e-18d8cffbe347